[Event "Late-Titled-Tuesday-Blitz-May-28-2024"]
[Site "Chess.com"]
[Date "2024.05.28"]
[Round "7"]
[White "aval7an"]
[Black "Kielinkei"]
[Result "0-1"]
[WhiteElo "2674"]
[BlackElo "2477"]
[TimeControl "180+1"]
[EndTime "15:19:39 PDT"]
[Termination "Kielinkei won on time"]

1. d4 {[%clk 0:03:00.9]} 1... Nf6 {[%clk 0:03:00.1]} 2. c4 {[%clk 0:02:48.8]}
2... e6 {[%clk 0:02:59.7]} 3. Nc3 {[%clk 0:02:49.2]} 3... Bb4 {[%clk 0:02:59.5]}
4. e3 {[%clk 0:02:48.3]} 4... O-O {[%clk 0:02:56.2]} 5. a3 {[%clk 0:02:49.1]}
5... Bxc3+ {[%clk 0:02:53.5]} 6. bxc3 {[%clk 0:02:50]} 6... c5 {[%clk
0:02:50.4]} 7. Bd3 {[%clk 0:02:49.2]} 7... d6 {[%clk 0:02:49.4]} 8. Ne2 {[%clk
0:02:48.9]} 8... Nc6 {[%clk 0:02:42.8]} 9. e4 {[%clk 0:02:48.9]} 9... e5 {[%clk
0:02:41.7]} 10. O-O {[%clk 0:02:48.4]} 10... b6 {[%clk 0:02:38.2]} 11. Bg5
{[%clk 0:02:46.7]} 11... h6 {[%clk 0:02:36.5]} 12. Bh4 {[%clk 0:02:46.9]} 12...
g5 {[%clk 0:02:35.7]} 13. Bg3 {[%clk 0:02:46.5]} 13... Nh5 {[%clk 0:02:31.2]}
14. f3 {[%clk 0:02:29.1]} 14... Nf4 {[%clk 0:02:26.7]} 15. Qd2 {[%clk
0:02:16.6]} 15... Kg7 {[%clk 0:02:23.1]} 16. Kh1 {[%clk 0:02:11.9]} 16... Ba6
{[%clk 0:02:18.8]} 17. Bf2 {[%clk 0:02:03.3]} 17... Na5 {[%clk 0:02:16.8]} 18.
Nxf4 {[%clk 0:02:01.2]} 18... gxf4 {[%clk 0:02:16.3]} 19. Qe2 {[%clk 0:01:59.6]}
19... cxd4 {[%clk 0:02:02.8]} 20. cxd4 {[%clk 0:01:57.9]} 20... Rc8 {[%clk
0:02:01.2]} 21. Rac1 {[%clk 0:01:44.4]} 21... Nb3 {[%clk 0:01:47.3]} 22. Rcd1
{[%clk 0:01:14.6]} 22... Qc7 {[%clk 0:01:32.7]} 23. c5 {[%clk 0:01:08.7]} 23...
Bb7 {[%clk 0:01:02.3]} 24. cxd6 {[%clk 0:00:47.7]} 24... Qxd6 {[%clk 0:01:02.5]}
25. dxe5 {[%clk 0:00:47]} 25... Qxe5 {[%clk 0:01:00.4]} 26. Bc4 {[%clk
0:00:47.1]} 26... Qc3 {[%clk 0:00:50.9]} 27. Bxb3 {[%clk 0:00:42.9]} 27... Qxb3
{[%clk 0:00:51.3]} 28. Bd4+ {[%clk 0:00:32.5]} 28... Kh7 {[%clk 0:00:51.1]} 29.
Qd2 {[%clk 0:00:30.9]} 29... f5 {[%clk 0:00:38.5]} 30. Qxf4 {[%clk 0:00:29.4]}
30... fxe4 {[%clk 0:00:37.2]} 31. Qe5 {[%clk 0:00:23.6]} 31... Qf7 {[%clk
0:00:29.8]} 32. f4 {[%clk 0:00:15.9]} 32... Rce8 {[%clk 0:00:27]} 33. Qb5 {[%clk
0:00:15.3]} 33... e3 {[%clk 0:00:22.7]} 34. Qd3+ {[%clk 0:00:11.8]} 34... Be4
{[%clk 0:00:22.4]} 35. Qe2 {[%clk 0:00:09]} 35... Rg8 {[%clk 0:00:22.8]} 36. Rg1
{[%clk 0:00:07.8]} 36... Bb7 {[%clk 0:00:09]} 37. Rdf1 {[%clk 0:00:06.7]} 37...
Rg6 {[%clk 0:00:08.4]} 38. f5 {[%clk 0:00:06.1]} 38... Rg5 {[%clk 0:00:08.3]}
39. Bxe3 {[%clk 0:00:04]} 39... Rxf5 {[%clk 0:00:06.6]} 40. Qc2 {[%clk 0:00:04]}
40... Be4 {[%clk 0:00:05.5]} 41. Rxf5 {[%clk 0:00:04.6]} 41... Qxf5 {[%clk
0:00:05.8]} 42. Qd2 {[%clk 0:00:05.1]} 42... Qd5 {[%clk 0:00:04.6]} 43. Bxh6
{[%clk 0:00:03.9]} 43... Qxd2 {[%clk 0:00:02]} 44. Bxd2 {[%clk 0:00:04.8]} 44...
Rd8 {[%clk 0:00:02.6]} 45. Bf4 {[%clk 0:00:04.5]} 45... Rd3 {[%clk 0:00:03.2]}
46. Re1 {[%clk 0:00:03.6]} 46... Bd5 {[%clk 0:00:01.6]} 47. Kg1 {[%clk
0:00:04.1]} 47... Rxa3 {[%clk 0:00:01.4]} 48. Re7+ {[%clk 0:00:03.2]} 48... Kg6
{[%clk 0:00:01.5]} 49. Rd7 {[%clk 0:00:02.6]} 49... Be4 {[%clk 0:00:02.1]} 50.
Kf2 {[%clk 0:00:02.6]} 50... Kf5 {[%clk 0:00:02.6]} 51. Rf7+ {[%clk 0:00:01.7]}
51... Ke6 {[%clk 0:00:03.3]} 52. Rf8 {[%clk 0:00:02.3]} 52... Ra2+ {[%clk
0:00:03.9]} 53. Ke3 {[%clk 0:00:02.6]} 53... Bxg2 {[%clk 0:00:04.6]} 54. Re8+
{[%clk 0:00:02.8]} 54... Kd5 {[%clk 0:00:04.9]} 55. Rg8 {[%clk 0:00:03]} 55...
Ra3+ {[%clk 0:00:03.9]} 56. Ke2 {[%clk 0:00:03.2]} 56... Be4 {[%clk 0:00:04.3]}
57. Rd8+ {[%clk 0:00:02.4]} 57... Kc4 {[%clk 0:00:04.7]} 58. h4 {[%clk
0:00:02.8]} 58... Bf3+ {[%clk 0:00:04.1]} 59. Kd2 {[%clk 0:00:02.1]} 59... b5
{[%clk 0:00:04.1]} 60. Rc8+ {[%clk 0:00:00.9]} 60... Kd4 {[%clk 0:00:04]} 61.
Rd8+ {[%clk 0:00:01.8]} 61... Ke4 {[%clk 0:00:04.3]} 62. Bg5 {[%clk 0:00:02.7]}
62... b4 {[%clk 0:00:04]} 63. Kc2 {[%clk 0:00:03.6]} 63... Rc3+ {[%clk
0:00:03.2]} 64. Kb2 {[%clk 0:00:03.8]} 64... a5 {[%clk 0:00:03.9]} 65. Ra8
{[%clk 0:00:03.2]} 65... Ra3 {[%clk 0:00:03.7]} 66. Ra7 {[%clk 0:00:02.8]} 66...
Kf5 {[%clk 0:00:03.9]} 67. Bd8 {[%clk 0:00:02.7]} 67... a4 {[%clk 0:00:02.1]}
68. Be7 {[%clk 0:00:03.2]} 68... Rb3+ {[%clk 0:00:02.4]} 69. Ka2 {[%clk
0:00:03.2]} 69... Bd5 {[%clk 0:00:02.7]} 70. Ra5 {[%clk 0:00:03.7]} 70... Ra3+
{[%clk 0:00:02.1]} 71. Kb2 {[%clk 0:00:02.4]} 71... Ke4 {[%clk 0:00:02.7]} 72.
Kc2 {[%clk 0:00:00.5]} 72... Ra2+ {[%clk 0:00:02.6]} 0-1

[Event "Late-Titled-Tuesday-Blitz-May-28-2024"]
[Site "Chess.com"]
[Date "2024.05.28"]
[Round "7"]
[White "Grebnev_A"]
[Black "MatthewG-p4p"]
[Result "1-0"]
[WhiteElo "2672"]
[BlackElo "2843"]
[TimeControl "180+1"]
[EndTime "15:20:22 PDT"]
[Termination "Grebnev_A won by checkmate"]

1. Nf3 {[%clk 0:03:00.9]} 1... c5 {[%clk 0:02:53.1]} 2. c4 {[%clk 0:02:59.3]}
2... g6 {[%clk 0:02:53.2]} 3. d4 {[%clk 0:02:58.6]} 3... cxd4 {[%clk 0:02:54.1]}
4. Nxd4 {[%clk 0:02:59.1]} 4... Bg7 {[%clk 0:02:53.9]} 5. e4 {[%clk 0:02:59.4]}
5... Nc6 {[%clk 0:02:54.5]} 6. Be3 {[%clk 0:02:54.4]} 6... Nf6 {[%clk
0:02:54.5]} 7. Nc3 {[%clk 0:02:53.9]} 7... O-O {[%clk 0:02:49.5]} 8. Be2 {[%clk
0:02:53.9]} 8... d6 {[%clk 0:02:49.6]} 9. O-O {[%clk 0:02:53.4]} 9... Nxd4
{[%clk 0:02:49.9]} 10. Bxd4 {[%clk 0:02:54.3]} 10... a5 {[%clk 0:02:50.3]} 11.
Rc1 {[%clk 0:02:54.1]} 11... Bd7 {[%clk 0:02:47.2]} 12. Qd2 {[%clk 0:02:52.5]}
12... Bc6 {[%clk 0:02:47.4]} 13. f3 {[%clk 0:02:52.6]} 13... a4 {[%clk
0:02:44.7]} 14. Rfd1 {[%clk 0:02:52]} 14... Nd7 {[%clk 0:02:44]} 15. Be3 {[%clk
0:02:42.8]} 15... Nc5 {[%clk 0:02:39.7]} 16. Bf1 {[%clk 0:02:41.4]} 16... Qa5
{[%clk 0:02:34.6]} 17. Nd5 {[%clk 0:02:26.6]} 17... Bxd5 {[%clk 0:02:33.6]} 18.
cxd5 {[%clk 0:02:24.5]} 18... Qb6 {[%clk 0:02:17.6]} 19. Rc2 {[%clk 0:02:20.1]}
19... f5 {[%clk 0:02:12.5]} 20. exf5 {[%clk 0:02:17.7]} 20... Rxf5 {[%clk
0:02:11.6]} 21. Bf2 {[%clk 0:02:15.3]} 21... Raf8 {[%clk 0:01:58.8]} 22. Re1
{[%clk 0:02:14.1]} 22... R5f7 {[%clk 0:01:55.7]} 23. h4 {[%clk 0:02:02.4]} 23...
Bf6 {[%clk 0:01:54.6]} 24. h5 {[%clk 0:02:00.4]} 24... gxh5 {[%clk 0:01:54.6]}
25. Qh6 {[%clk 0:01:51.7]} 25... Rg7 {[%clk 0:01:46]} 26. Qxh5 {[%clk
0:01:48.7]} 26... Qb4 {[%clk 0:01:35.4]} 27. a3 {[%clk 0:01:20]} 27... Qb3
{[%clk 0:01:25.1]} 28. Rd2 {[%clk 0:01:20.2]} 28... Bg5 {[%clk 0:01:20.3]} 29.
Rdd1 {[%clk 0:00:32.7]} 29... Qxb2 {[%clk 0:01:05.6]} 30. Bd4 {[%clk 0:00:31.4]}
30... Qxa3 {[%clk 0:00:32.1]} 31. Bxg7 {[%clk 0:00:31.1]} 31... Be3+ {[%clk
0:00:32.7]} 32. Kh1 {[%clk 0:00:31.7]} 32... Kxg7 {[%clk 0:00:32.9]} 33. Qg4+
{[%clk 0:00:25.1]} 33... Kh8 {[%clk 0:00:30]} 34. Qh4 {[%clk 0:00:25.1]} 34...
Rf6 {[%clk 0:00:23.8]} 35. Rd3 {[%clk 0:00:13.7]} 35... Qxd3 {[%clk 0:00:10.5]}
36. Bxd3 {[%clk 0:00:12.5]} 36... Rh6 {[%clk 0:00:10.4]} 37. Qxh6 {[%clk
0:00:12.6]} 37... Bxh6 {[%clk 0:00:11.3]} 38. Bb5 {[%clk 0:00:08.2]} 38... Bg5
{[%clk 0:00:07]} 39. f4 {[%clk 0:00:06.7]} 39... Bf6 {[%clk 0:00:06.8]} 40. Re3
{[%clk 0:00:07.1]} 40... b6 {[%clk 0:00:04.7]} 41. g4 {[%clk 0:00:07.1]} 41...
Kg7 {[%clk 0:00:04.1]} 42. g5 {[%clk 0:00:06.8]} 42... Bb2 {[%clk 0:00:04.8]}
43. Rxe7+ {[%clk 0:00:06.8]} 43... Kg6 {[%clk 0:00:05.6]} 44. Kg2 {[%clk
0:00:06.3]} 44... a3 {[%clk 0:00:05.8]} 45. Ra7 {[%clk 0:00:06.1]} 45... Kf5
{[%clk 0:00:05.8]} 46. Kf3 {[%clk 0:00:06.3]} 46... Bc1 {[%clk 0:00:03.2]} 47.
Ra4 {[%clk 0:00:06.2]} 47... Bb2 {[%clk 0:00:03]} 48. Ra8 {[%clk 0:00:04.2]}
48... Bc1 {[%clk 0:00:03.1]} 49. Rf8+ {[%clk 0:00:04.4]} 49... Kg6 {[%clk
0:00:03.7]} 50. Ra8 {[%clk 0:00:01.8]} 50... h6 {[%clk 0:00:04.2]} 51. gxh6
{[%clk 0:00:01.8]} 51... Kxh6 {[%clk 0:00:05.1]} 52. Ra7 {[%clk 0:00:02.3]}
52... Kg6 {[%clk 0:00:05.4]} 53. Kg4 {[%clk 0:00:02.8]} 53... Kf6 {[%clk
0:00:05.8]} 54. f5 {[%clk 0:00:03.7]} 54... Ke5 {[%clk 0:00:03.6]} 55. Be8
{[%clk 0:00:03.8]} 55... Bb2 {[%clk 0:00:03.2]} 56. Ra8 {[%clk 0:00:03.3]} 56...
Kxd5 {[%clk 0:00:03.6]} 57. Kg5 {[%clk 0:00:03.1]} 57... Ke4 {[%clk 0:00:01.5]}
58. f6 {[%clk 0:00:03.1]} 58... Ne6+ {[%clk 0:00:02]} 59. Kg6 {[%clk 0:00:03.5]}
59... Nc7 {[%clk 0:00:02.9]} 60. Bc6+ {[%clk 0:00:03.8]} 60... Kd3 {[%clk
0:00:02.9]} 61. f7 {[%clk 0:00:04.2]} 61... Ne6 {[%clk 0:00:02.8]} 62. Bd5
{[%clk 0:00:02.2]} 62... Nf4+ {[%clk 0:00:02.7]} 63. Kf5 {[%clk 0:00:02.8]}
63... Nxd5 {[%clk 0:00:03.2]} 64. f8=Q {[%clk 0:00:03.4]} 64... Be5 {[%clk
0:00:02.6]} 65. Rxa3+ {[%clk 0:00:02.2]} 65... Nc3 {[%clk 0:00:03.4]} 66. Qe7
{[%clk 0:00:01.6]} 66... Kc4 {[%clk 0:00:03.9]} 67. Rxc3+ {[%clk 0:00:02.3]}
67... Kxc3 {[%clk 0:00:04.1]} 68. Qe6 {[%clk 0:00:03.2]} 68... Kb4 {[%clk
0:00:04.2]} 69. Ke4 {[%clk 0:00:04.1]} 69... b5 {[%clk 0:00:04.7]} 70. Kd3
{[%clk 0:00:04.7]} 70... Kc5 {[%clk 0:00:04.7]} 71. Kc2 {[%clk 0:00:04.7]} 71...
b4 {[%clk 0:00:05.3]} 72. Qb3 {[%clk 0:00:05.3]} 72... Bc3 {[%clk 0:00:05.8]}
73. Kd3 {[%clk 0:00:06.2]} 73... d5 {[%clk 0:00:06.1]} 74. Qa4 {[%clk
0:00:06.8]} 74... Be1 {[%clk 0:00:03.8]} 75. Qa5+ {[%clk 0:00:07.2]} 75... Kc6
{[%clk 0:00:04.1]} 76. Kd4 {[%clk 0:00:08.1]} 76... Bc3+ {[%clk 0:00:04.2]} 77.
Kd3 {[%clk 0:00:08.2]} 77... Kd6 {[%clk 0:00:04.5]} 78. Qb5 {[%clk 0:00:08.4]}
78... Ke5 {[%clk 0:00:05]} 79. Qe8+ {[%clk 0:00:08]} 79... Kd6 {[%clk
0:00:05.9]} 80. Qe3 {[%clk 0:00:08.3]} 80... Kc6 {[%clk 0:00:05.8]} 81. Kc2
{[%clk 0:00:08.6]} 81... Kb5 {[%clk 0:00:05.4]} 82. Kb3 {[%clk 0:00:09.2]} 82...
Kc6 {[%clk 0:00:05.7]} 83. Qd3 {[%clk 0:00:10.1]} 83... Kc5 {[%clk 0:00:06]} 84.
Ka4 {[%clk 0:00:11]} 84... Bd4 {[%clk 0:00:05]} 85. Qb5+ {[%clk 0:00:10.3]}
85... Kd6 {[%clk 0:00:05.7]} 86. Qxb4+ {[%clk 0:00:10.7]} 86... Ke5 {[%clk
0:00:06.6]} 87. Qd2 {[%clk 0:00:11.3]} 87... Bc5 {[%clk 0:00:06.5]} 88. Qd1
{[%clk 0:00:12.2]} 88... Ke4 {[%clk 0:00:06.3]} 89. Kb3 {[%clk 0:00:13.1]} 89...
Be3 {[%clk 0:00:06.9]} 90. Kc2 {[%clk 0:00:14]} 90... Bc5 {[%clk 0:00:06]} 91.
Qd3+ {[%clk 0:00:14.9]} 91... Ke5 {[%clk 0:00:06.8]} 92. Kd1 {[%clk 0:00:15.5]}
92... Bd4 {[%clk 0:00:06.8]} 93. Ke2 {[%clk 0:00:16.4]} 93... Bc5 {[%clk
0:00:07.7]} 94. Kf3 {[%clk 0:00:17.3]} 94... Bd4 {[%clk 0:00:07.7]} 95. Kg4
{[%clk 0:00:17.3]} 95... Bc5 {[%clk 0:00:08.4]} 96. Qf5+ {[%clk 0:00:17.5]}
96... Kd4 {[%clk 0:00:09.3]} 97. Qe6 {[%clk 0:00:18]} 97... Kc4 {[%clk
0:00:09.7]} 98. Kf4 {[%clk 0:00:18.6]} 98... Kd4 {[%clk 0:00:10.6]} 99. Qa6
{[%clk 0:00:16.1]} 99... Bb4 {[%clk 0:00:09.9]} 100. Qa4 {[%clk 0:00:16]} 100...
Kc5 {[%clk 0:00:10.6]} 101. Ke5 {[%clk 0:00:16.5]} 101... Bc3+ {[%clk 0:00:11]}
102. Ke6 {[%clk 0:00:17.2]} 102... Bb4 {[%clk 0:00:11.9]} 103. Qa7+ {[%clk
0:00:15.8]} 103... Kc4 {[%clk 0:00:12]} 104. Qa6+ {[%clk 0:00:16]} 104... Kd4
{[%clk 0:00:12.1]} 105. Qb6+ {[%clk 0:00:15.8]} 105... Kc4 {[%clk 0:00:12.3]}
106. Qc6+ {[%clk 0:00:15.9]} 106... Bc5 {[%clk 0:00:11.9]} 107. Qxd5+ {[%clk
0:00:16.8]} 107... Kb5 {[%clk 0:00:12.7]} 108. Ke5 {[%clk 0:00:17.3]} 108... Kb6
{[%clk 0:00:13.6]} 109. Ke4 {[%clk 0:00:18.2]} 109... Bf8 {[%clk 0:00:13.5]}
110. Kd3 {[%clk 0:00:18.3]} 110... Kc7 {[%clk 0:00:14.1]} 111. Kc4 {[%clk
0:00:19.2]} 111... Bd6 {[%clk 0:00:14.6]} 112. Qe6 {[%clk 0:00:19.7]} 112... Be7
{[%clk 0:00:15.5]} 113. Qxe7+ {[%clk 0:00:19.9]} 113... Kb6 {[%clk 0:00:13.7]}
114. Qd6+ {[%clk 0:00:19.9]} 114... Ka7 {[%clk 0:00:13.8]} 115. Qb4 {[%clk
0:00:18.5]} 115... Ka8 {[%clk 0:00:14.7]} 116. Kc5 {[%clk 0:00:19.4]} 116... Ka7
{[%clk 0:00:14.3]} 117. Kc6 {[%clk 0:00:20.3]} 117... Ka8 {[%clk 0:00:15.2]}
118. Qb7# {[%clk 0:00:20.7]} 1-0

[Event "Late-Titled-Tuesday-Blitz-May-28-2024"]
[Site "Chess.com"]
[Date "2024.05.28"]
[Round "8"]
[White "bazar-wokzal"]
[Black "jaramsdal"]
[Result "1-0"]
[WhiteElo "2584"]
[BlackElo "2401"]
[TimeControl "180+1"]
[EndTime "15:23:24 PDT"]
[Termination "bazar-wokzal won by checkmate"]

1. e4 {[%clk 0:03:00.9]} 1... c5 {[%clk 0:02:58.8]} 2. c3 {[%clk 0:03:00.2]}
2... Nf6 {[%clk 0:02:58.1]} 3. e5 {[%clk 0:03:00.1]} 3... Nd5 {[%clk 0:02:58.7]}
4. d4 {[%clk 0:03:00.3]} 4... d6 {[%clk 0:02:55]} 5. c4 {[%clk 0:02:59.4]} 5...
Nc7 {[%clk 0:02:49]} 6. dxc5 {[%clk 0:02:58.8]} 6... dxe5 {[%clk 0:02:44.6]} 7.
Qxd8+ {[%clk 0:02:58.6]} 7... Kxd8 {[%clk 0:02:45.5]} 8. Nc3 {[%clk 0:02:57.9]}
8... Nba6 {[%clk 0:02:35.8]} 9. Be3 {[%clk 0:02:56.7]} 9... e6 {[%clk
0:02:25.5]} 10. O-O-O+ {[%clk 0:02:55.4]} 10... Ke8 {[%clk 0:02:26]} 11. Ne4
{[%clk 0:02:53.7]} 11... f5 {[%clk 0:02:05.9]} 12. Nd6+ {[%clk 0:02:53.9]} 12...
Ke7 {[%clk 0:02:06.1]} 13. Bg5+ {[%clk 0:02:52.7]} 13... Kd7 {[%clk 0:02:01]}
14. Nf7+ {[%clk 0:02:41.8]} 14... Ke8 {[%clk 0:01:59.4]} 15. Nxh8 {[%clk
0:02:39.7]} 15... Bxc5 {[%clk 0:01:56.3]} 16. Rd8# {[%clk 0:02:37.2]} 1-0

[Event "Late-Titled-Tuesday-Blitz-May-28-2024"]
[Site "Chess.com"]
[Date "2024.05.28"]
[Round "8"]
[White "dealshark"]
[Black "KebabJangles"]
[Result "1-0"]
[WhiteElo "2427"]
[BlackElo "2274"]
[TimeControl "180+1"]
[EndTime "15:23:36 PDT"]
[Termination "dealshark won by checkmate"]

1. e4 {[%clk 0:02:54.9]} 1... c5 {[%clk 0:02:59.6]} 2. c3 {[%clk 0:02:54.6]}
2... Nf6 {[%clk 0:02:53.1]} 3. e5 {[%clk 0:02:54.6]} 3... Nd5 {[%clk 0:02:52.3]}
4. d4 {[%clk 0:02:54.9]} 4... Nc6 {[%clk 0:02:47.7]} 5. Nf3 {[%clk 0:02:54.7]}
5... e6 {[%clk 0:02:45.8]} 6. Bc4 {[%clk 0:02:54.2]} 6... Nb6 {[%clk 0:02:44]}
7. Bb3 {[%clk 0:02:54.7]} 7... d6 {[%clk 0:02:43.6]} 8. Qe2 {[%clk 0:02:52]}
8... Be7 {[%clk 0:02:42.1]} 9. O-O {[%clk 0:02:51.8]} 9... O-O {[%clk
0:02:41.8]} 10. Rd1 {[%clk 0:02:44.5]} 10... Qc7 {[%clk 0:02:38.1]} 11. Bf4
{[%clk 0:02:43.1]} 11... cxd4 {[%clk 0:02:31]} 12. cxd4 {[%clk 0:02:43.2]} 12...
d5 {[%clk 0:02:26.3]} 13. Nc3 {[%clk 0:02:41.4]} 13... a6 {[%clk 0:02:23.9]} 14.
h4 {[%clk 0:02:39.5]} 14... Na5 {[%clk 0:02:21.2]} 15. Bc2 {[%clk 0:02:39.3]}
15... Nac4 {[%clk 0:02:20.6]} 16. Bd3 {[%clk 0:02:33.2]} 16... h6 {[%clk
0:02:18.1]} 17. Rac1 {[%clk 0:02:29.5]} 17... Qb8 {[%clk 0:02:17.6]} 18. Bb1
{[%clk 0:02:25]} 18... Bd7 {[%clk 0:02:15.8]} 19. Qc2 {[%clk 0:02:19.2]} 19...
Rc8 {[%clk 0:02:15.2]} 20. Qh7+ {[%clk 0:02:14.1]} 20... Kf8 {[%clk 0:02:14.5]}
21. Qh8# {[%clk 0:02:15]} 1-0

[Event "Late-Titled-Tuesday-Blitz-May-28-2024"]
[Site "Chess.com"]
[Date "2024.05.28"]
[Round "8"]
[White "GMthekingindian"]
[Black "HajiyevKanan"]
[Result "0-1"]
[WhiteElo "2347"]
[BlackElo "2478"]
[TimeControl "180+1"]
[EndTime "15:24:58 PDT"]
[Termination "HajiyevKanan won by resignation"]

1. d4 {[%clk 0:02:54.8]} 1... a6 {[%clk 0:03:00.9]} 2. e4 {[%clk 0:02:54.7]}
2... b5 {[%clk 0:03:01.5]} 3. Bd3 {[%clk 0:02:52.2]} 3... Bb7 {[%clk 0:03:02.4]}
4. Nf3 {[%clk 0:02:52.1]} 4... Nf6 {[%clk 0:03:02.1]} 5. Qe2 {[%clk 0:02:51.9]}
5... e6 {[%clk 0:03:02]} 6. O-O {[%clk 0:02:51.5]} 6... c5 {[%clk 0:03:02.4]} 7.
dxc5 {[%clk 0:02:43.8]} 7... Bxc5 {[%clk 0:03:03.3]} 8. a4 {[%clk 0:02:44.4]}
8... b4 {[%clk 0:03:03.1]} 9. Bg5 {[%clk 0:02:43.3]} 9... h6 {[%clk 0:03:03.1]}
10. Bh4 {[%clk 0:02:43.1]} 10... Qc7 {[%clk 0:03:00.2]} 11. Nbd2 {[%clk
0:02:39.8]} 11... Nc6 {[%clk 0:02:55.2]} 12. Nc4 {[%clk 0:02:38]} 12... Be7
{[%clk 0:02:48.4]} 13. e5 {[%clk 0:02:28.9]} 13... Nd5 {[%clk 0:02:44.6]} 14.
Bxe7 {[%clk 0:02:28.5]} 14... Kxe7 {[%clk 0:02:37.9]} 15. Nd6 {[%clk 0:02:21.8]}
15... Nxe5 {[%clk 0:02:31.2]} 16. Qxe5 {[%clk 0:01:30.8]} 16... Qxd6 {[%clk
0:02:31.1]} 17. Qxg7 {[%clk 0:01:30.9]} 17... Rag8 {[%clk 0:02:30.7]} 18. Qd4
{[%clk 0:01:15.6]} 18... Rxg2+ {[%clk 0:02:23.7]} 19. Kxg2 {[%clk 0:01:13.8]}
19... Nf4+ {[%clk 0:02:23.6]} 20. Kg3 {[%clk 0:00:51.7]} 20... Ne2+ {[%clk
0:02:19.4]} 0-1

[Event "Late-Titled-Tuesday-Blitz-May-28-2024"]
[Site "Chess.com"]
[Date "2024.05.28"]
[Round "8"]
[White "VirtualCoach"]
[Black "kalinchick"]
[Result "0-1"]
[WhiteElo "2197"]
[BlackElo "2369"]
[TimeControl "180+1"]
[EndTime "15:25:18 PDT"]
[Termination "kalinchick won by resignation"]

1. e4 {[%clk 0:03:00.9]} 1... e6 {[%clk 0:02:57.7]} 2. d4 {[%clk 0:02:59.9]}
2... d5 {[%clk 0:02:58.3]} 3. Nc3 {[%clk 0:03:00]} 3... dxe4 {[%clk 0:02:58.3]}
4. Nxe4 {[%clk 0:02:59.7]} 4... Nd7 {[%clk 0:02:59.2]} 5. Nf3 {[%clk 0:02:56.4]}
5... Ngf6 {[%clk 0:03:00.1]} 6. Bd3 {[%clk 0:02:55.9]} 6... Nxe4 {[%clk
0:02:59.7]} 7. Bxe4 {[%clk 0:02:56.3]} 7... Nf6 {[%clk 0:03:00.3]} 8. Bd3 {[%clk
0:02:56.5]} 8... Be7 {[%clk 0:03:00.9]} 9. O-O {[%clk 0:02:56.3]} 9... O-O
{[%clk 0:03:01.5]} 10. c3 {[%clk 0:02:56.5]} 10... b6 {[%clk 0:03:02.1]} 11. Qc2
{[%clk 0:02:56]} 11... Bb7 {[%clk 0:03:01.9]} 12. Nd2 {[%clk 0:02:56]} 12... c5
{[%clk 0:02:54.8]} 13. dxc5 {[%clk 0:02:48.4]} 13... Qd5 {[%clk 0:02:49.1]} 14.
Nf3 {[%clk 0:02:30.7]} 14... Qxc5 {[%clk 0:02:48.3]} 15. Be3 {[%clk 0:02:30.1]}
15... Qh5 {[%clk 0:02:47.2]} 16. Be2 {[%clk 0:02:24.9]} 16... Rfd8 {[%clk
0:02:44.3]} 17. Rad1 {[%clk 0:02:24]} 17... Bd6 {[%clk 0:02:38.2]} 18. h3 {[%clk
0:02:21.1]} 18... Nd5 {[%clk 0:02:21.8]} 19. Bd4 {[%clk 0:02:13]} 19... Nf4
{[%clk 0:02:19.2]} 20. Rfe1 {[%clk 0:01:52.2]} 20... Nxh3+ {[%clk 0:02:05.7]}
21. gxh3 {[%clk 0:01:41.2]} 21... Bxf3 {[%clk 0:02:05.6]} 22. Bxf3 {[%clk
0:01:33.9]} 22... Qxf3 {[%clk 0:02:06.5]} 23. Re3 {[%clk 0:01:33.2]} 23... Qh5
{[%clk 0:01:58.9]} 24. Rg3 {[%clk 0:01:29.4]} 24... Bxg3 {[%clk 0:01:56.8]} 25.
fxg3 {[%clk 0:01:25.1]} 25... e5 {[%clk 0:01:51]} 26. g4 {[%clk 0:01:24.5]}
26... Qxh3 {[%clk 0:01:49.7]} 0-1

[Event "Late-Titled-Tuesday-Blitz-May-28-2024"]
[Site "Chess.com"]
[Date "2024.05.28"]
[Round "8"]
[White "cthake"]
[Black "nitpicker"]
[Result "0-1"]
[WhiteElo "1777"]
[BlackElo "2310"]
[TimeControl "180+1"]
[EndTime "15:25:21 PDT"]
[Termination "nitpicker won by resignation"]

1. c4 {[%clk 0:03:00.9]} 1... e5 {[%clk 0:02:55.5]} 2. Nc3 {[%clk 0:03:00.6]}
2... Nf6 {[%clk 0:02:55.7]} 3. d3 {[%clk 0:03:00.2]} 3... h6 {[%clk 0:02:53.9]}
4. g3 {[%clk 0:03:00.2]} 4... d5 {[%clk 0:02:53.2]} 5. cxd5 {[%clk 0:02:59.3]}
5... Nxd5 {[%clk 0:02:54.1]} 6. Bg2 {[%clk 0:02:59.1]} 6... Nf6 {[%clk
0:02:54.2]} 7. Bd2 {[%clk 0:02:49.2]} 7... Bd6 {[%clk 0:02:43]} 8. Ne4 {[%clk
0:02:44.8]} 8... Be7 {[%clk 0:02:33]} 9. Nxf6+ {[%clk 0:02:42]} 9... Bxf6 {[%clk
0:02:32.4]} 10. Bc3 {[%clk 0:02:41.9]} 10... Nc6 {[%clk 0:02:25.7]} 11. Nf3
{[%clk 0:02:41]} 11... O-O {[%clk 0:02:23.7]} 12. O-O {[%clk 0:02:40.6]} 12...
Bf5 {[%clk 0:02:18.7]} 13. Nd2 {[%clk 0:02:34.8]} 13... Qd7 {[%clk 0:02:11.8]}
14. Ne4 {[%clk 0:02:34.5]} 14... Be7 {[%clk 0:02:07.4]} 15. a3 {[%clk
0:02:28.9]} 15... Bh3 {[%clk 0:02:06.5]} 16. Rc1 {[%clk 0:02:24.4]} 16... Bxg2
{[%clk 0:02:05.7]} 17. Kxg2 {[%clk 0:02:23.7]} 17... Qd5 {[%clk 0:01:57.2]} 18.
Bd2 {[%clk 0:02:06.1]} 18... f5 {[%clk 0:01:51.9]} 19. f3 {[%clk 0:01:45.2]}
19... fxe4 {[%clk 0:01:50.8]} 20. dxe4 {[%clk 0:01:44.3]} 20... Qe6 {[%clk
0:01:46.4]} 21. b3 {[%clk 0:01:42.3]} 21... Rad8 {[%clk 0:01:44.6]} 22. Qc2
{[%clk 0:01:41.5]} 22... Nd4 {[%clk 0:01:39.8]} 23. Qxc7 {[%clk 0:01:39.2]}
23... Nxb3 {[%clk 0:01:33.8]} 0-1

[Event "Late-Titled-Tuesday-Blitz-May-28-2024"]
[Site "Chess.com"]
[Date "2024.05.28"]
[Round "8"]
[White "Thjop"]
[Black "lrjchess"]
[Result "0-1"]
[WhiteElo "2619"]
[BlackElo "2509"]
[TimeControl "180+1"]
[EndTime "15:25:22 PDT"]
[Termination "lrjchess won by resignation"]

1. d4 {[%clk 0:02:59.9]} 1... Nf6 {[%clk 0:02:57.4]} 2. Bg5 {[%clk 0:02:56.6]}
2... Ne4 {[%clk 0:02:57.4]} 3. Bf4 {[%clk 0:02:56.7]} 3... c5 {[%clk 0:02:57]}
4. f3 {[%clk 0:02:52.3]} 4... Qa5+ {[%clk 0:02:56.6]} 5. Nd2 {[%clk 0:02:50.9]}
5... Nxd2 {[%clk 0:02:53.8]} 6. Bxd2 {[%clk 0:02:42.1]} 6... Qb6 {[%clk
0:02:53.8]} 7. Bc3 {[%clk 0:02:37.5]} 7... Nc6 {[%clk 0:02:53]} 8. dxc5 {[%clk
0:02:36.3]} 8... Qxc5 {[%clk 0:02:53.9]} 9. e4 {[%clk 0:02:25.8]} 9... d6 {[%clk
0:02:50.3]} 10. Bd3 {[%clk 0:02:19.6]} 10... b5 {[%clk 0:02:45.1]} 11. a3 {[%clk
0:02:16.5]} 11... Bb7 {[%clk 0:02:43]} 12. Ne2 {[%clk 0:02:16.2]} 12... a5
{[%clk 0:02:41.1]} 13. Nd4 {[%clk 0:02:03]} 13... b4 {[%clk 0:02:34.8]} 14. axb4
{[%clk 0:01:49.8]} 14... axb4 {[%clk 0:02:35.7]} 15. Rxa8+ {[%clk 0:01:47.2]}
15... Bxa8 {[%clk 0:02:34.5]} 16. Qa1 {[%clk 0:00:56.5]} 16... Bb7 {[%clk
0:02:27.3]} 17. Nxc6 {[%clk 0:00:56.2]} 17... bxc3 {[%clk 0:02:21.7]} 18. Qa5
{[%clk 0:00:39.7]} 18... Bxc6 {[%clk 0:02:10.7]} 0-1